fUST/lending_fUST_20251119
["ID","MTS","AMOUNT","RATE_DAILY","PERIOD"]
[394388003,1763517047834,-574.72733568,0.00016438,2]
[394388004,1763517047846,-500.0,0.00016438,2]
[394388005,1763517047855,-500.0,0.00016438,2]
[394388006,1763517047865,-500.0,0.00016438,2]
[394388007,1763517047874,-500.0,0.00016438,2]
[394388008,1763517047883,-500.0,0.00016438,2]
[394388009,1763517047892,-500.0,0.00016438,2]
[394388010,1763517047901,-500.0,0.00016438,2]
[394388011,1763517047911,-500.0,0.00016438,2]
[394388012,1763517047920,-500.0,0.00016438,2]
[394388013,1763517047929,-500.0,0.00016438,2]
[394388014,1763517047938,-500.0,0.00016438,2]
[394388015,1763517047948,-500.0,0.00016438,2]
[394388016,1763517047958,-500.0,0.00016438,2]
[394388017,1763517047967,-500.0,0.00016438,2]
[394388018,1763517047976,-500.0,0.00016438,2]
[394388019,1763517047986,-500.0,0.00016438,2]
[394388020,1763517047995,-500.0,0.00016438,2]
[394388021,1763517048006,-500.0,0.00016438,2]
[394388022,1763517048015,-500.0,0.00016438,2]
[394388023,1763517048024,-500.0,0.00016438,2]
[394388024,1763517048033,-500.0,0.00016438,2]
[394388025,1763517048042,-500.0,0.00016438,2]
[394388026,1763517048051,-500.0,0.00016438,2]
[394388027,1763517048062,-500.0,0.00016438,2]
[394388028,1763517048071,-610.23311271,0.00016438,2]
[394388029,1763517048080,-500.0,0.00016438,2]
[394388030,1763517048089,-151.0,0.00016438,2]
[394388031,1763517048099,-151.0,0.00016438,2]
[394388032,1763517048108,-151.0,0.00016438,2]
[394388033,1763517048116,-151.0,0.00016438,2]
[394388034,1763517048125,-500.0,0.00016455,2]
[394388035,1763517048134,-561.0,0.00016456,2]
[394388036,1763517048144,-151.0,0.00016465,2]
[394388037,1763517048153,-500.0,0.00016465,2]
[394388038,1763517048161,-500.0,0.00016465,2]
[394388039,1763517048173,-151.0,0.00016465,2]
[394388040,1763517048182,-155.44114021,0.00016472,2]
[394388041,1763517048191,-475.81696552,0.00016473,2]
[394388042,1763517048200,-500.39101686,0.00016473,2]
[394388043,1763517048210,-500.0,0.00016473,2]
[394388044,1763517048219,-500.54156975,0.00016473,2]
[394388045,1763517048228,-500.62162773,0.00016473,2]
[394388046,1763517048237,-500.0,0.00016473,2]
[394388047,1763517048246,-500.0,0.00016473,2]
[394388048,1763517048258,-500.0,0.00016473,2]
[394388049,1763517048267,-500.0,0.00016473,2]
[394388050,1763517048276,-500.37423692,0.00016473,2]
[394388051,1763517048285,-500.0,0.00016473,2]
[394388052,1763517048295,-504.05832909,0.00016473,2]
[394388053,1763517048304,-500.0,0.00016473,2]
[394388054,1763517048313,-500.0,0.00016473,2]
[394388055,1763517048322,-500.0,0.00016473,2]
[394388056,1763517048331,-500.0,0.00016473,2]
[394388057,1763517048341,-500.0,0.00016473,2]
[394388058,1763517048351,-500.0,0.00016473,2]
[394388059,1763517048360,-500.0,0.00016473,2]
[394388060,1763517048370,-183.10083734,0.00016473,2]
[394388061,1763517048379,-500.0,0.00016473,2]
[394388062,1763517048389,-500.0,0.00016473,2]
[394388063,1763517048398,-505.60972619,0.00016473,2]
[394388064,1763517048407,-500.0,0.00016473,2]
[394388065,1763517048416,-500.0,0.00016473,2]
[394388066,1763517048425,-500.0,0.00016473,2]
[394388067,1763517048434,-500.0,0.00016473,2]
[394388068,1763517048443,-500.0,0.00016473,2]
[394388069,1763517048452,-500.0,0.00016473,2]
[394388070,1763517048461,-500.0,0.00016473,2]
[394388071,1763517048471,-165.48732767,0.00016473,2]
[394388072,1763517048480,-500.0,0.00016473,2]
[394388073,1763517048490,-162.85610517,0.00016473,2]
[394388074,1763517048499,-500.0,0.00016473,2]
[394388075,1763517048508,-500.0,0.00016473,2]
[394388076,1763517048517,-500.0,0.00016473,2]
[394388077,1763517048527,-445.69250355,0.00016473,2]
[394388078,1763517048537,-501.65067781,0.00016473,2]
[394388079,1763517048546,-501.23064018,0.00016473,2]
[394388080,1763517048555,-501.61884464,0.00016473,2]
[394388081,1763517048564,-500.0,0.00016473,2]
[394388082,1763517048573,-500.0,0.00016473,2]
[394388083,1763517048583,-172.55388676,0.00016473,2]
[394388084,1763517048595,-500.28151942,0.00016473,2]
[394388085,1763517048605,-500.70555796,0.00016473,2]
[394388086,1763517048614,-430.05531192,0.00016473,2]
[394388087,1763517048623,-500.0,0.00016473,2]
[394388088,1763517048632,-500.0,0.00016473,2]
[394388089,1763517048641,-500.0,0.00016473,2]
[394388090,1763517048649,-500.98617428,0.00016473,2]
[394388091,1763517048658,-500.0,0.00016473,2]
[394388092,1763517048667,-500.0,0.00016473,2]
[394388093,1763517048675,-500.0,0.00016473,2]
[394388094,1763517048684,-509.84315193,0.00016473,2]
[394388095,1763517048693,-503.33042753,0.00016473,2]
[394388096,1763517048702,-500.0,0.00016473,2]
[394388097,1763517048711,-453.81206981,0.00016473,2]
[394388098,1763517048721,-517.6516235,0.00016473,2]
[394388099,1763517048730,-500.0,0.00016473,2]
[394388100,1763517048739,-511.22832421,0.00016473,2]
[394388101,1763517048748,-500.0,0.00016473,2]
[394388102,1763517048758,-500.0,0.00016473,2]
[394388103,1763517048766,-207.37104278,0.00016482,2]
[394388104,1763517048775,-561.0,0.00016484,2]
[394388105,1763517048784,-151.0,0.00016493,2]
[394388106,1763517048792,-500.0,0.00016493,2]
[394388107,1763517048801,-500.0,0.00016493,2]
[394388108,1763517048809,-151.0,0.00016493,2]
[394388109,1763517048818,-2447.83788659,0.00016499,2]
[394388110,1763517048827,-561.0,0.00016511,2]
[394388111,1763517048836,-234.63331093,0.00016515,3]
[394388112,1763517048847,-151.0,0.0001652,2]
[394388113,1763517048856,-500.0,0.0001652,2]
[394388114,1763517048865,-500.0,0.0001652,2]
[394388115,1763517048875,-500.0,0.0001652,2]
[394388116,1763517048884,-159.24956226,0.0001652,2]
[394388117,1763517048892,-1000.0,0.00016521,2]
[394388118,1763517048901,-254.08719922,0.00016537,2]
[394388119,1763517048911,-561.0,0.00016538,2]
[394388120,1763517048920,-279.23716234,0.00016548,2]
[394388121,1763517048929,-500.0,0.00016548,2]
[394388122,1763517048938,-500.0,0.00016548,2]
[394388123,1763517048947,-500.0,0.00016548,2]
[394388124,1763517048956,-561.0,0.00016566,2]
[394388125,1763517048965,-500.0,0.00016575,2]
[394388126,1763517048975,-500.0,0.00016575,2]
[394388127,1763517048983,-500.0,0.00016575,2]
[394388128,1763517048992,-327.89226538,0.0001659,2]
[394388129,1763517049002,-561.0,0.00016593,2]
[394388130,1763517049011,-500.0,0.00016602,2]
[394388131,1763517049020,-500.0,0.00016602,2]
[394388132,1763517049029,-500.0,0.00016602,2]
[394388133,1763517049039,-621.76456085,0.00016605,2]
[394388134,1763517049048,-259.0,0.00016609,2]
[394388135,1763517049057,-561.0,0.00016621,2]
[394388136,1763517049066,-500.0,0.0001663,2]
[394388137,1763517049075,-500.0,0.0001663,2]
[394388138,1763517049084,-561.0,0.00016648,2]
[394388139,1763517049093,-259.0,0.0001665,2]
[394388140,1763517049102,-500.0,0.00016657,2]
[394388141,1763517049111,-500.0,0.00016657,2]
[394388142,1763517049120,-561.0,0.00016675,2]
[394388143,1763517049128,-500.0,0.00016685,2]
[394388144,1763517049137,-173.03643772,0.00016685,2]
[394388145,1763517049146,-259.0,0.00016692,2]
[394388146,1763517049157,-500.0,0.00016698,2]
[394388147,1763517049166,-151.0,0.000167,2]
[394388148,1763517049177,-561.0,0.00016703,2]
[394388149,1763517049187,-500.0,0.00016712,2]
[394388150,1763517049197,-938.53324372,0.00016727,3]
[394388151,1763517049206,-451.64390818,0.00016727,3]
[394388152,1763517049215,-561.0,0.0001673,2]
[394388153,1763517049224,-1398.97026191,0.00016738,2]
[394388154,1763517049233,-500.0,0.00016739,2]
[394388155,1763517049243,-805.0,0.00016747,2]
[394388156,1763517049252,-561.0,0.00016758,2]
[394388157,1763517049262,-300.0,0.00016766,2]
[394388158,1763517049271,-300.0,0.00016766,2]
[394388159,1763517049390,-300.0,0.00016766,2]
[394388160,1763517049400,-300.0,0.00016766,2]
[394388161,1763517049409,-300.0,0.00016766,2]
[394388162,1763517049419,-300.0,0.00016766,2]
[394388163,1763517049428,-300.0,0.00016766,2]
[394388164,1763517049438,-300.0,0.00016766,2]
[394388165,1763517049447,-300.0,0.00016766,2]
[394388166,1763517049456,-300.0,0.00016766,2]
[394388167,1763517049465,-300.0,0.00016766,2]
[394388168,1763517049474,-300.0,0.00016766,2]
[394388169,1763517049483,-300.0,0.00016766,2]
[394388170,1763517049492,-300.0,0.00016766,2]
[394388171,1763517049501,-300.0,0.00016766,2]
[394388172,1763517049510,-600.0,0.00016766,2]
[394388173,1763517049518,-500.0,0.00016767,2]
[394388174,1763517049528,-561.0,0.00016785,2]
[394388175,1763517049537,-500.0,0.00016794,2]
[394388176,1763517049546,-150.5,0.000168,2]
[394388177,1763517049555,-151.0,0.000168,2]
[394388178,1763517049571,-1000.0,0.000168,4]
[394388179,1763517049581,-561.0,0.00016812,2]
[394388180,1763517049590,-500.0,0.00016822,2]
[394388181,1763517049600,-1949.0,0.00016826,2]
[394388182,1763517049610,-561.0,0.0001684,2]
[394388183,1763517049620,-805.0,0.00016849,2]
[394388184,1763517049630,-564.15578727,0.00016867,2]
[394388185,1763517049639,-2487.0582434,0.00016871,2]
[394388186,1763517049647,-259.0,0.00016883,2]
[394388187,1763517049656,-500.0,0.000169,2]
[394388188,1763517049665,-151.0,0.000169,2]
[394388189,1763517049674,-259.0,0.00016907,2]
[394388190,1763517049683,-259.0,0.00016941,2]
[394388191,1763517049692,-259.0,0.00016952,2]
[394388192,1763517049701,-166.16127222,0.00016959,2]
[394388193,1763517049713,-202.100352,0.00016968,2]
[394388194,1763517049722,-202.100352,0.00016968,2]
[394388195,1763517049731,-202.100352,0.00016968,2]
[394388196,1763517049740,-202.100352,0.00016968,2]
[394388197,1763517049749,-1500.0,0.00016968,2]
[394388198,1763517049758,-470.2134175,0.00016968,2]
[394388199,1763517049767,-1538.42515823,0.00016968,2]
[394388200,1763517049777,-1500.0,0.00016968,2]
[394388201,1763517049786,-1500.0,0.00016968,2]
[394388202,1763517049796,-1500.0,0.00016968,2]
[394388203,1763517049805,-1500.0,0.00016968,2]
[394388204,1763517049814,-652.78628009,0.00016968,2]
[394388205,1763517049823,-1500.0,0.00016968,2]
[394388206,1763517049832,-502.33098715,0.00016968,2]
[394388207,1763517049842,-1500.0,0.00016968,2]
[394388208,1763517049851,-1017.16437544,0.00016968,2]
[394388209,1763517049862,-1500.0,0.00016968,2]
[394388210,1763517049871,-1500.45755535,0.00016968,2]
[394388211,1763517049881,-500.0,0.00016972,2]
[394388212,1763517049890,-225.18697532,0.00016977,2]
[394388213,1763517049899,-45823.08690666,0.00017,2]
[394388214,1763517049909,-151.0,0.00017,2]
[394388215,1763517049918,-151.0,0.00017,2]
[394388216,1763517049928,-151.0,0.00017,2]
[394388217,1763517049938,-202.145556,0.00017,2]
[394388218,1763517049948,-160.0,0.00017,2]
[394388219,1763517049959,-3882.14247681,0.00017004,2]
[394388220,1763517049969,-199.40495708,0.00017006,3]
[394388221,1763517049979,-259.0,0.00017011,2]
[394388222,1763517049990,-1000.0,0.00017021,2]
[394388223,1763517050000,-345.48811134,0.00017021,2]
[394388224,1763517050011,-501.38595046,0.00017021,2]
[394388225,1763517050022,-1000.0,0.00017021,2]
[394388226,1763517050033,-501.01226821,0.00017021,2]
[394388227,1763517050048,-1000.0,0.00017021,2]
[394388228,1763517050058,-1000.0,0.00017021,2]
[394388229,1763517050068,-266.8881092,0.00017021,2]
[394388230,1763517050078,-502.13900009,0.00017021,2]
[394388231,1763517050089,-164.22872862,0.00017021,2]
[394388232,1763517050104,-1027.31382683,0.00017021,2]
[394388233,1763517050113,-1000.0,0.00017021,2]
[394388234,1763517050123,-1000.0,0.00017021,2]
[394388235,1763517050132,-1000.0,0.00017021,2]
[394388236,1763517050142,-1000.0,0.00017021,2]
[394388237,1763517050152,-504.58010999,0.00017021,2]
[394388238,1763517050162,-503.42139426,0.00017021,2]
[394388239,1763517050173,-1000.0,0.00017021,2]
[394388240,1763517050186,-1000.0,0.00017021,2]
[394388241,1763517050195,-1001.79394026,0.00017021,2]
[394388242,1763517050205,-528.55647881,0.00017021,2]
[394388243,1763517050216,-1000.0,0.00017021,2]
[394388244,1763517050226,-424.07590189,0.00017021,2]
[394388245,1763517050236,-511.46660052,0.00017021,2]
[394388246,1763517050246,-1000.0,0.00017021,2]
[394388247,1763517050255,-811.0902021,0.00017021,2]
[394388248,1763517050266,-1000.0,0.00017021,2]
[394388249,1763517050277,-1000.0,0.00017021,2]
[394388250,1763517050286,-373.07139652,0.00017021,2]
[394388251,1763517050296,-458.60908153,0.00017021,2]
[394388252,1763517050306,-332.62595604,0.00017021,2]
[394388253,1763517050315,-1003.44060064,0.00017021,2]
[394388254,1763517050324,-1000.0,0.00017021,2]
[394388255,1763517050333,-1017.83377634,0.00017021,2]
[394388256,1763517050346,-1000.0,0.00017021,2]
[394388257,1763517050355,-1000.0,0.00017021,2]
[394388258,1763517050365,-504.7147735,0.00017021,2]
[394388259,1763517050375,-1000.0,0.00017021,2]
[394388260,1763517050384,-3092.0,0.00017037,2]
[394388261,1763517050393,-1107.98317633,0.00017068,2]
[394388262,1763517050403,-420.0,0.00017204,2]
[394388263,1763517050412,-797.61982833,0.00017225,3]
[394388264,1763517050421,-1949.0,0.00017226,2]
[394388265,1763517050430,-384.04386014,0.00017233,3]
[394388266,1763517050440,-500.0,0.00017246,2]
[394388267,1763517050451,-2066.72,0.0001725,3]
[394388268,1763517050460,-1033.36,0.0001725,3]
[394388269,1763517050469,-516.68,0.0001725,3]
[394388270,1763517050478,-799.52088172,0.0001726,2]
[394388271,1763517050488,-259.0,0.00017274,2]
[394388272,1763517050496,-1000.0,0.000173,2]
[394388273,1763517050505,-5888.0,0.00017318,2]
[394388274,1763517050514,-259.0,0.00017343,2]
[394388275,1763517050523,-350.0,0.00017392,2]
[394388276,1763517050533,-259.0,0.00017409,2]
[394388277,1763517050542,-2000.0,0.00017516,2]
[394388278,1763517050552,-668.75498445,0.00017516,2]
[394388279,1763517050562,-2000.0,0.00017516,2]
[394388280,1763517050572,-1507.82932849,0.00017516,2]
[394388281,1763517050581,-2000.0,0.00017516,2]
[394388282,1763517050591,-2000.0,0.00017516,2]
[394388283,1763517050601,-2000.0,0.00017516,2]
[394388284,1763517050610,-1871.08347065,0.00017516,2]
[394388285,1763517050619,-500.0,0.0001752,2]
[394388286,1763517050628,-233.51889341,0.00017525,2]
[394388287,1763517050638,-416.0,0.00017544,2]
[394388288,1763517050647,-260.0,0.00017548,2]
[394388289,1763517050656,-151.0,0.00017568,2]
[394388290,1763517050666,-151.0,0.00017568,2]
[394388291,1763517050675,-151.0,0.00017568,2]
[394388292,1763517050684,-175.244109,0.00017568,2]
[394388293,1763517050693,-366.500575,0.00017568,2]
[394388294,1763517050702,-366.500575,0.00017568,2]
[394388295,1763517050711,-366.500575,0.00017568,2]
[394388296,1763517050720,-366.500575,0.00017568,2]
[394388297,1763517050728,-202.100352,0.00017568,2]
[394388298,1763517050738,-202.100352,0.00017568,2]
[394388299,1763517050747,-202.100352,0.00017568,2]
[394388300,1763517050756,-202.100352,0.00017568,2]
[394388301,1763517050765,-1577.37931914,0.00017568,2]
[394388302,1763517050774,-1500.0,0.00017568,2]
[394388303,1763517050783,-1014.00719228,0.00017568,2]
[394388304,1763517050792,-1500.0,0.00017568,2]
[394388305,1763517050801,-1500.0,0.00017568,2]
[394388306,1763517050810,-502.28844447,0.00017568,2]
[394388307,1763517050819,-503.18087216,0.00017568,2]
[394388308,1763517050828,-1500.0,0.00017568,2]
[394388309,1763517050837,-1500.0,0.00017568,2]
[394388310,1763517050849,-1500.0,0.00017568,2]
[394388311,1763517050859,-1150.76395465,0.00017568,2]
[394388312,1763517050868,-1500.0,0.00017568,2]
[394388313,1763517050878,-502.99408635,0.00017568,2]
[394388314,1763517050887,-1500.0,0.00017568,2]
[394388315,1763517050897,-1459.47915147,0.00017568,2]
[394388316,1763517050907,-1057.60843727,0.00017568,2]
[394388317,1763517050917,-1514.93271038,0.00017568,2]
[394388318,1763517050927,-1500.0,0.00017568,2]
[394388319,1763517050939,-10000.0,0.00017598,2]
[394388320,1763517050951,-2123.64349036,0.000176,2]
[394388321,1763517050963,-265.3581508,0.00017631,2]
[394388322,1763517050973,-500.0,0.00017794,2]
[394388323,1763517050983,-322.96422094,0.00017968,2]
[394388324,1763517050995,-505.86166721,0.00017973,2]
[394388325,1763517051005,-179.97069143,0.00017973,2]
[394388326,1763517051016,-500.0,0.00017973,2]
[394388327,1763517051030,-500.0,0.00017973,2]
[394388328,1763517051042,-500.0,0.00017973,2]
[394388329,1763517051056,-500.0,0.00017973,2]
[394388330,1763517051070,-151.0,0.00017973,2]
[394388331,1763517051082,-151.0,0.00017973,2]
[394388332,1763517051097,-115822.70772758,0.00018,2]
[394388333,1763517051108,-2034.75722423,0.00018,2]
[394388334,1763517051120,-1068.54159675,0.00018,2]
[394388335,1763517051130,-151.0,0.00018,2]
[394388336,1763517051140,-151.0,0.00018,2]
[394388337,1763517051150,-151.0,0.00018,2]
[394388338,1763517051160,-202.100352,0.00018,2]
[394388339,1763517051171,-202.100352,0.00018,2]
[394388340,1763517051181,-202.100352,0.00018,2]
[394388341,1763517051193,-202.100352,0.00018,2]
[394388342,1763517051204,-1012.63069236,0.00018064,2]
[394388343,1763517051215,-2500.0,0.00018064,2]
[394388344,1763517051226,-2500.0,0.00018064,2]
[394388345,1763517051237,-2500.0,0.00018064,2]
[394388346,1763517051248,-1007.14866116,0.00018064,2]
[394388347,1763517051260,-500.0,0.00018068,2]
[394388348,1763517051272,-242.15909246,0.00018073,2]
[394388349,1763517051283,-360.0,0.00018096,2]
[394388350,1763517051296,-1488.72259841,0.00018116,2]
[394388351,1763517051308,-2000.0,0.00018116,2]
[394388352,1763517051319,-2000.0,0.00018116,2]
[394388353,1763517051331,-2000.0,0.00018116,2]
[394388354,1763517051346,-440.09090781,0.00018116,2]
[394388355,1763517051357,-2000.0,0.00018116,2]
[394388356,1763517051370,-980.79981711,0.00018116,2]
[394388357,1763517051382,-2000.0,0.00018116,2]
[394388358,1763517051394,-2000.0,0.00018116,2]
[394388359,1763517051405,-500.0,0.00018342,2]
[394388360,1763517051415,-720.0,0.00018442,2]
[394388361,1763517051426,-1000.0,0.00018521,2]
[394388362,1763517051438,-1000.0,0.00018521,2]
[394388363,1763517051451,-565.66664347,0.00018521,2]
[394388364,1763517051461,-1000.0,0.00018521,2]
[394388365,1763517051472,-151.0,0.00018521,2]
[394388366,1763517051483,-151.0,0.00018521,2]
[394388367,1763517051493,-151.0,0.00018521,2]
[394388368,1763517051505,-366.500575,0.00018521,2]
[394388369,1763517051515,-366.500575,0.00018521,2]
[394388370,1763517051528,-366.500575,0.00018521,2]
[394388371,1763517051540,-366.500575,0.00018521,2]
[394388372,1763517051551,-178.06992347,0.00018529,2]
[394388373,1763517051562,-342.76546603,0.00018604,2]
[394388374,1763517051576,-3000.0,0.00018612,2]
[394388375,1763517051588,-3000.0,0.00018612,2]
[394388376,1763517051601,-3000.0,0.00018612,2]
[394388377,1763517051612,-500.0,0.00018616,2]
[394388378,1763517051623,-251.11897888,0.00018621,2]
[394388379,1763517051636,-460.0,0.00018644,2]
[394388380,1763517051648,-2500.0,0.00018664,2]
[394388381,1763517051659,-1518.35450267,0.00018664,2]
[394388382,1763517051671,-2500.0,0.00018664,2]
[394388383,1763517051684,-672.75340954,0.00018664,2]
[394388384,1763517051695,-2500.0,0.00018664,2]
[394388385,1763517051706,-2500.0,0.00018664,2]
[394388386,1763517051719,-2194.4388378,0.00018812,2]
[394388387,1763517051733,-587.0,0.00018815,2]
[394388388,1763517051745,-500.0,0.00018821,2]
[394388389,1763517051756,-158.92081534,0.00018821,2]
[394388390,1763517051768,-501.55108345,0.00018821,2]
[394388391,1763517051780,-500.0,0.00018821,2]
[394388392,1763517051792,-712.2796939,0.00018842,2]
[394388393,1763517051803,-500.0,0.0001889,2]
[394388394,1763517051816,-151.33411922,0.00018893,2]
[394388395,1763517051827,-616.36086101,0.00018917,2]
[394388396,1763517051838,-240.0,0.00019,2]
[394388397,1763517051850,-162.76602733,0.00019012,2]
[394388398,1763517051862,-1500.0,0.00019068,2]
[394388399,1763517051873,-1500.0,0.00019068,2]
[394388400,1763517051884,-1500.0,0.00019068,2]
[394388401,1763517051895,-500.70682001,0.00019075,2]
[394388402,1763517051906,-500.0,0.00019075,2]
[394388403,1763517051917,-500.0,0.00019075,2]
[394388404,1763517051929,-159.40504128,0.00019075,2]
[394388405,1763517051940,-158.99891625,0.00019075,2]
[394388406,1763517051951,-501.40538733,0.00019119,2]
[394388407,1763517051963,-302.48982902,0.00019119,2]
[394388408,1763517051975,-501.02696155,0.00019119,2]
[394388409,1763517051986,-344.72879565,0.00019119,2]
[394388410,1763517051997,-500.0,0.00019119,2]
[394388411,1763517052008,-159.64954857,0.00019119,2]
[394388412,1763517052018,-1601.02668196,0.00019156,2]
[394388413,1763517052028,-3500.0,0.0001916,2]
[394388414,1763517052039,-3500.0,0.0001916,2]
[394388415,1763517052049,-3500.0,0.0001916,2]
[394388416,1763517052060,-470.80631433,0.00019162,2]
[394388417,1763517052070,-500.0,0.00019162,2]
[394388418,1763517052080,-174.97796697,0.00019162,2]
[394388419,1763517052091,-513.57092707,0.00019162,2]
[394388420,1763517052102,-500.0,0.00019162,2]
[394388421,1763517052113,-500.0,0.00019162,2]
[394388422,1763517052123,-500.0,0.00019162,2]
[394388423,1763517052134,-500.0,0.00019164,2]
[394388424,1763517052145,-260.4103811,0.00019169,2]
[394388425,1763517052156,-1174.73,0.00019178,2]
[394388426,1763517052170,-1174.73,0.00019178,2]
[394388427,1763517052182,-1174.73,0.00019178,2]
[394388428,1763517052193,-1174.73,0.00019178,2]
[394388429,1763517052204,-1174.73,0.00019178,2]
[394388430,1763517052216,-1174.73,0.00019178,2]
[394388431,1763517052225,-1174.73,0.00019178,2]
[394388432,1763517052236,-1174.73,0.00019178,2]
[394388433,1763517052252,-1174.73,0.00019178,2]
[394388434,1763517052263,-1174.73,0.00019178,2]
[394388435,1763517052275,-1174.73,0.00019178,2]
[394388436,1763517052286,-1174.73,0.00019178,2]
[394388437,1763517052299,-1174.73,0.00019178,2]
[394388438,1763517052310,-1174.73,0.00019178,2]
[394388439,1763517052322,-1174.73,0.00019178,2]
[394388440,1763517052333,-1174.73,0.00019178,2]
[394388441,1763517052343,-1174.73,0.00019178,2]
[394388442,1763517052357,-1174.73,0.00019178,2]
[394388443,1763517052368,-1174.73,0.00019178,2]
[394388444,1763517052380,-1174.73,0.00019178,2]
[394388445,1763517052391,-1174.73,0.00019178,2]
[394388446,1763517052403,-1174.73,0.00019178,2]
[394388447,1763517052414,-1174.73,0.00019178,2]
[394388448,1763517052532,-1174.75532921,0.00019178,2]
[394388449,1763517052543,-560.0,0.00019192,2]
[394388450,1763517052554,-3000.0,0.00019212,2]
[394388451,1763517052564,-3000.0,0.00019212,2]
[394388452,1763517052573,-3000.0,0.00019212,2]
[394388453,1763517052582,-3000.0,0.00019212,2]
[394388454,1763517052592,-605.33647686,0.00019226,2]
[394388455,1763517052601,-291.46185814,0.00019261,2]
[394388456,1763517052611,-160.96145731,0.00019369,2]
[394388457,1763517052620,-501.83082701,0.00019369,2]
[394388458,1763517052630,-352.15448963,0.00019389,2]
[394388459,1763517052639,-500.0,0.00019438,2]
[394388460,1763517052648,-489.6454893,0.00019499,2]
[394388461,1763517052657,-242.96,0.00019519,2]
[394388462,1763517052666,-265.3581508,0.00019528,2]
[394388463,1763517052678,-1360.64506586,0.00019559,2]
[394388464,1763517052687,-151.0,0.00019585,7]
[394388465,1763517052696,-151.0,0.00019585,7]
[394388466,1763517052706,-151.0,0.00019585,7]
[394388467,1763517052715,-202.100352,0.00019585,7]
[394388468,1763517052724,-202.100352,0.00019585,7]
[394388469,1763517052733,-202.100352,0.00019585,7]
[394388470,1763517052742,-202.100359,0.00019585,7]
[394388471,1763517052751,-524.10671332,0.00019589,2]
[394388472,1763517052761,-151.0,0.00019616,7]
[394388473,1763517052770,-151.864517,0.00019616,7]
[394388474,1763517052779,-969.17578897,0.00019616,2]
[394388475,1763517052787,-2001.71649247,0.00019616,2]
[394388476,1763517052796,-2000.0,0.00019616,2]
[394388477,1763517052805,-1000.0,0.00019623,2]
[394388478,1763517052814,-1001.41359849,0.00019623,2]
[394388479,1763517052823,-1000.0,0.00019667,2]
[394388480,1763517052832,-4000.0,0.00019708,2]
[394388481,1763517052842,-4000.0,0.00019708,2]
[394388482,1763517052852,-4000.0,0.00019708,2]
[394388483,1763517052861,-607.39453028,0.00019709,2]
[394388484,1763517052871,-1000.0,0.00019709,2]
[394388485,1763517052881,-1000.0,0.00019709,2]
[394388486,1763517052890,-1000.0,0.00019709,2]
[394388487,1763517052900,-500.0,0.00019712,2]
[394388488,1763517052909,-270.0455652,0.00019717,2]
[394388489,1763517052918,-660.0,0.0001974,2]
[394388490,1763517052927,-733.53164921,0.0001976,2]
[394388491,1763517052936,-3500.0,0.0001976,2]
[394388492,1763517052947,-3500.0,0.0001976,2]
[394388493,1763517052956,-3500.0,0.0001976,2]
[394388494,1763517052965,-163.0,0.000198,2]
[394388495,1763517052976,-163.0,0.000198,2]
[394388496,1763517052985,-8403.0,0.000199,2]
[394388497,1763517052994,-365.70948547,0.00019968,2]
[394388498,1763517053003,-500.0,0.00019985,2]
[394388499,1763517053013,-11651.54564975,0.0002,2]
[394388500,1763517053023,-14614.4909826,0.0002,2]
[394388501,1763517053032,-251.7441327,0.0002,21]
[394388502,1763517053042,-2977.04154603,0.0002,20]